Buisness Unit,Buisness Code,Service Code,Service Label,Organisational Unit,Expenditure, Payment Date,Net payment,Transaction Number,Supplier ID,Supplier Name 
North West Leicestershire District Council,31UH,LDLS,Legal & Democratic,Legal Services,External Legal Fees & Advice,29/01/2014,500.00,1276165,A037278,Wright Hassall LLP
North West Leicestershire District Council,31UH,EXCH,Finance,Exchequer Services,Agency Staff,29/01/2014,"13,070.06",1276194,A036958,Comensura Limited
North West Leicestershire District Council,31UH,ICT,Information Technology,ICT Services,Equipment Operating Leases,29/01/2014,"3,877.96",1276208,A040459,Canon UK Ltd
North West Leicestershire District Council,31UH,LDLS,Legal & Democratic,Legal Services,Legal & Professional Services,29/01/2014,"4,352.00",1276267,A031366,Bevan Brittan
North West Leicestershire District Council,31UH,HPLC,Leisure Centres,Hood Park Leisure Centre,Telephone Charge / Rental,29/01/2014,580.83,1276285,A035373,Virgin Media Business
North West Leicestershire District Council,31UH,HPLC,Leisure Centres,Hood Park Leisure Centre,Contract Payments (Other) Ext,29/01/2014,"11,750.00",1276295,A039532,Craftsman Quality Lockers Ltd
North West Leicestershire District Council,31UH,EES,Environmental Health,Environmental Services,Grants,29/01/2014,"3,167.92",1276353,A038469,Leicestershire County Council
North West Leicestershire District Council,31UH,NACN,Neighbourhoods & Communities,N & C Neighbourhoods,Extended Services,05/02/2014,655.36,1276637,A024378,Hays Human Resources
North West Leicestershire District Council,31UH,NACN,Neighbourhoods & Communities,N & C Neighbourhoods,Extended Services,05/02/2014,677.72,1276638,A024378,Hays Human Resources
North West Leicestershire District Council,31UH,NACN,Neighbourhoods & Communities,N & C Neighbourhoods,Extended Services,05/02/2014,679.87,1276639,A024378,Hays Human Resources
North West Leicestershire District Council,31UH,NACN,Neighbourhoods & Communities,N & C Neighbourhoods,Extended Services,05/02/2014,676.43,1276640,A024378,Hays Human Resources
North West Leicestershire District Council,31UH,CULTYP,Leisure & Culture,Cultural Services Children & YoungPeople,RESPECT,29/01/2014,"1,500.00",1276391,A000950,Leicestershire County Council
North West Leicestershire District Council,31UH,HRAHM,Housing,HRA Housing Management,Castle Donington etc,29/01/2014,700.00,1276394,A032364,Pinewood Lodge
North West Leicestershire District Council,31UH,NACN,Neighbourhoods & Communities,N & C Neighbourhoods,Extended Services,05/02/2014,675.35,1276649,A024378,Hays Human Resources
North West Leicestershire District Council,31UH,ICT,Information Technology,ICT Services,Equipment Operating Leases,28/01/2014,"1,167.59",1276399,A001301,The Danwood Group Ltd
North West Leicestershire District Council,31UH,EXCH,Finance,Exchequer Services,Agency Staff,05/02/2014,"12,600.06",1276693,A036958,Comensura Limited
North West Leicestershire District Council,31UH,HRAHM,Housing,HRA Housing Management,Electricity,05/02/2014,"1,096.93",1276695,A001468,Severn Trent Water Limited
North West Leicestershire District Council,31UH,ENOP,Street Management,Environment Parks,Water Charges (Metered),05/02/2014,974.19,1276748,A001468,Severn Trent Water Limited
North West Leicestershire District Council,31UH,EEHL,Environmental Health,Environmental Health & Licensing,Grants,05/02/2014,"1,725.00",1276752,A038469,Leicestershire County Council
North West Leicestershire District Council,31UH,HRAHM,Housing,HRA Housing Management,Contract Cleaning,05/02/2014,"1,925.02",1276762,A000950,Leicestershire County Council
North West Leicestershire District Council,31UH,HRAHM,Housing,HRA Housing Management,Contract Cleaning,05/02/2014,"1,394.00",1276763,A000950,Leicestershire County Council
North West Leicestershire District Council,31UH,FINPLA,Finance,Financial Planning,Transport - Operating Leases,05/02/2014,"62,161.56",1276768,A030097,SG Equipment Finance Limited
North West Leicestershire District Council,31UH,FINPLA,Finance,Financial Planning,Transport - Operating Leases,05/02/2014,"13,081.85",1276769,A030097,SG Equipment Finance Limited
North West Leicestershire District Council,31UH,EXCH,Finance,Exchequer Services,Contract Payments (Other) Ext,29/01/2014,"2,550.00",1276404,A010859,Selima Limited
North West Leicestershire District Council,31UH,EES,Environmental Health,Environmental Services,Grants,29/01/2014,"7,582.50",1276620,A038469,Leicestershire County Council
North West Leicestershire District Council,31UH,NACN,Neighbourhoods & Communities,N & C Neighbourhoods,Extended Services,05/02/2014,555.79,1276641,A024378,Hays Human Resources
North West Leicestershire District Council,31UH,NACN,Neighbourhoods & Communities,N & C Neighbourhoods,Extended Services,05/02/2014,677.89,1276642,A024378,Hays Human Resources
North West Leicestershire District Council,31UH,NACN,Neighbourhoods & Communities,N & C Neighbourhoods,Extended Services,05/02/2014,679.70,1276643,A024378,Hays Human Resources
North West Leicestershire District Council,31UH,NACN,Neighbourhoods & Communities,N & C Neighbourhoods,Extended Services,05/02/2014,646.76,1276644,A024378,Hays Human Resources
North West Leicestershire District Council,31UH,NACN,Neighbourhoods & Communities,N & C Neighbourhoods,Extended Services,05/02/2014,677.89,1276645,A024378,Hays Human Resources
North West Leicestershire District Council,31UH,NACN,Neighbourhoods & Communities,N & C Neighbourhoods,Extended Services,05/02/2014,547.40,1276646,A024378,Hays Human Resources
North West Leicestershire District Council,31UH,NACN,Neighbourhoods & Communities,N & C Neighbourhoods,Extended Services,05/02/2014,536.21,1276647,A024378,Hays Human Resources
North West Leicestershire District Council,31UH,NACN,Neighbourhoods & Communities,N & C Neighbourhoods,Extended Services,05/02/2014,675.35,1276648,A024378,Hays Human Resources
North West Leicestershire District Council,31UH,HRAHRM,Housing Repairs,HRA Housing Repairs & Maintenance,Contract Payments (Dws) Ext,05/02/2014,533.00,1276847,A032629,National Grid Gas Plc
North West Leicestershire District Council,31UH,ESS,Street Management,Environment - Street Scene,Water Charges (Metered),05/02/2014,662.65,1276788,A001468,Severn Trent Water Limited
North West Leicestershire District Council,31UH,EXCH,Finance,Exchequer Services,Gas,04/02/2014,"6,731.91",1276859,A000958,ESPO
North West Leicestershire District Council,31UH,EXCH,Finance,Exchequer Services,Gas,04/02/2014,"16,870.07",1276860,A035709,Corona Energy Retail 4 Ltd
North West Leicestershire District Council,31UH,EDC,Planning & Development,Environment - Development Control,External Legal Fees & Advice,05/02/2014,"1,000.00",1276837,A034291,Valuation Office Agency
North West Leicestershire District Council,31UH,HRAHM,Housing,HRA Housing Management,Contract Cleaning,05/02/2014,"7,405.78",1277108,A000950,Leicestershire County Council
North West Leicestershire District Council,31UH,ECP,Planning & Development,Environment Community Planning,External Legal Fees & Advice,05/02/2014,620.00,1276812,A040877,Paxton Brown Ltd
North West Leicestershire District Council,31UH,CULTYP,Leisure & Culture,Cultural Services Children & YoungPeople,Other Miscellaneous Expenses,05/02/2014,"1,904.80",1276814,A036038,TTS Group Ltd
North West Leicestershire District Council,31UH,LDLS,Legal & Democratic,Legal Services,Interim Support,12/02/2014,"4,443.33",1277195,A016315,Marrons Consultancies Limited
North West Leicestershire District Council,31UH,ICT,Information Technology,ICT Services,Telephone Charge / Rental,12/02/2014,"5,803.24",1277208,A008908,Virgin Media Business
North West Leicestershire District Council,31UH,EXCH,Finance,Exchequer Services,Other Miscellaneous Expenses,05/02/2014,"2,308.55",1276829,A010859,Selima Limited
North West Leicestershire District Council,31UH,ECP,Planning & Development,Environment Community Planning,External Legal Fees & Advice,05/02/2014,"3,250.00",1276831,A028258,Peter Brett Associates T/a Roger Tym & Partners
North West Leicestershire District Council,31UH,EXCH,Finance,Exchequer Services,Agency Staff,12/02/2014,"9,772.38",1277159,A036958,Comensura Limited
North West Leicestershire District Council,31UH,PROPFM,Property Services,Property Facilities Management,Electricity,12/02/2014,"4,253.33",1277276,A030266,Southern Electric
North West Leicestershire District Council,31UH,FINPLA,Finance,Financial Planning,Equipment Operating Leases,12/02/2014,"1,798.00",1277313,A033672,Santander Asset Finance PLC
North West Leicestershire District Council,31UH,EXCH,Finance,Exchequer Services,Collection - Cash,12/02/2014,"1,199.83",1277315,A004468,Kings Armoured Security Services Ltd
North West Leicestershire District Council,31UH,HLC,Leisure Centres,Hermitage Leisure Centre,Water Charges (Metered),12/02/2014,"1,722.82",1277886,A001468,Severn Trent Water Limited
North West Leicestershire District Council,31UH,LCM,Leisure & Culture,Leisure & Cult Mangt,Extended Services,12/02/2014,"8,100.00",1277273,A039843,Women's Aid Leicestershire Ltd
North West Leicestershire District Council,31UH,LCM,Leisure & Culture,Leisure & Cult Mangt,Extended Services,12/02/2014,"11,044.80",1277274,A039843,Women's Aid Leicestershire Ltd
North West Leicestershire District Council,31UH,EES,Environmental Health,Environmental Services,Grants,12/02/2014,"4,504.80",1277874,A038916,MFW Building Services Ltd
North West Leicestershire District Council,31UH,ICT,Information Technology,ICT Services,Photo Copier - Copy Charges Rental,13/02/2014,711.13,1277937,A001301,The Danwood Group Ltd
North West Leicestershire District Council,31UH,EXCH,Finance,Exchequer Services,LEICS FIRE & RESCUE,13/02/2014,"166,375.00",1277943,A028339,"Leicester, Leicestershire &"
North West Leicestershire District Council,31UH,EXCH,Finance,Exchequer Services,Leicstershire Police,13/02/2014,"495,661.60",1277949,A007096,The Office of the Police and Crime Commissioner for Leicestershire
North West Leicestershire District Council,31UH,EEHL,Environmental Health,Environmental Health & Licensing,Grants,19/02/2014,"3,250.00",1277934,A027561,MJM Plumbing & Heating Services (Midlands) Ltd
North West Leicestershire District Council,31UH,EXCH,Finance,Exchequer Services,Alarm System Telephones,13/02/2014,"5,072.08",1277968,A000233,British Telecommunications Plc
North West Leicestershire District Council,31UH,EXCH,Finance,Exchequer Services,Agency Staff,19/02/2014,"12,301.71",1277997,A036958,Comensura Limited
North West Leicestershire District Council,31UH,ENOT,Street Management,Environment Transport,Licences - Road Fund Licence,19/02/2014,"1,200.00",1278008,A008559,Post Office Limited
North West Leicestershire District Council,31UH,ENOT,Street Management,Environment Transport,Water Charges (Metered),19/02/2014,"1,735.75",1278135,A001468,Severn Trent Water Limited
North West Leicestershire District Council,31UH,LCM,Leisure & Culture,Leisure & Cult Mangt,Grants,19/02/2014,"13,710.00",1278144,A040635,South West Leicestershire Citizens Advice Bureau
North West Leicestershire District Council,31UH,EEHL,Environmental Health,Environmental Health & Licensing,Stray Dog Service,19/02/2014,"1,764.00",1278422,A000385,College Garth Boarding Kennels
North West Leicestershire District Council,31UH,EXCH,Finance,Exchequer Services,Agency Staff,19/02/2014,"8,205.64",1278428,A036958,Comensura Limited
North West Leicestershire District Council,31UH,FINPLA,Finance,Financial Planning,Transport - Operating Leases,19/02/2014,"9,422.91",1278018,A020440,Capital Bank Leasing Ltd
North West Leicestershire District Council,31UH,PROPCL,Property Services,Property Commercial Lettings,Telephones,19/02/2014,677.16,1278023,A000233,British Telecommunications Plc
North West Leicestershire District Council,31UH,HLC,Leisure Centres,Hermitage Leisure Centre,Water Charges (Metered),19/02/2014,874.00,1278131,A001468,Severn Trent Water Limited
North West Leicestershire District Council,31UH,HLC,Leisure Centres,Hermitage Leisure Centre,Electricity,19/02/2014,"2,687.93",1278132,A030266,Southern Electric
North West Leicestershire District Council,31UH,HRAHRM,Housing Repairs,HRA Housing Repairs & Maintenance,Front Door - Timber,19/02/2014,"10,665.70",1278121,A039980,Kier Services Maintenance East Ltd
North West Leicestershire District Council,31UH,EES,Environmental Health,Environmental Services,Grants,19/02/2014,"1,682.00",1278095,A038469,Leicestershire County Council
North West Leicestershire District Council,31UH,FINPLA,Finance,Financial Planning,Transport - Operating Leases,19/02/2014,"1,100.00",1278111,A034516,Asset Advantage Limited
North West Leicestershire District Council,31UH,ICT,Information Technology,ICT Services,Advertising,19/02/2014,864.87,1278112,A029965,British Telecommunications
North West Leicestershire District Council,31UH,HRAHRM,Housing Repairs,HRA Housing Repairs & Maintenance,Front Door - Timber,19/02/2014,"748,913.46",1278119,A039973,Lovell Partnerships Ltd
North West Leicestershire District Council,31UH,HRAHRM,Housing Repairs,HRA Housing Repairs & Maintenance,Front Door - Timber,19/02/2014,"385,517.69",1278120,A039980,Kier Services Maintenance East Ltd
North West Leicestershire District Council,31UH,HRAHM,Housing,HRA Housing Management,Water Charges (Metered),26/02/2014,"1,109.00",1278441,A001468,Severn Trent Water Limited
North West Leicestershire District Council,31UH,HPLC,Leisure Centres,Hood Park Leisure Centre,General Repairs,26/02/2014,"1,840.00",1278044,A001069,Mclean Decorators Ltd
North West Leicestershire District Council,31UH,EES,Environmental Health,Environmental Services,Grants,26/02/2014,"2,675.00",1278432,A027561,MJM Plumbing & Heating Services (Midlands) Ltd
North West Leicestershire District Council,31UH,HRAHRM,Housing Repairs,HRA Housing Repairs & Maintenance,Tipping Charges,26/02/2014,"3,945.48",1278464,A035471,Ward Recycling
North West Leicestershire District Council,31UH,HPLC,Leisure Centres,Hood Park Leisure Centre,Electricity,26/02/2014,"1,189.56",1278542,A030266,Southern Electric
North West Leicestershire District Council,31UH,HPLC,Leisure Centres,Hood Park Leisure Centre,Water Charges (Metered),26/02/2014,"1,019.00",1278543,A001468,Severn Trent Water Limited
North West Leicestershire District Council,31UH,HPLC,Leisure Centres,Hood Park Leisure Centre,Water Charges (Metered),26/02/2014,987.15,1278544,A001468,Severn Trent Water Limited
North West Leicestershire District Council,31UH,HPLC,Leisure Centres,Hood Park Leisure Centre,Telephone Charge / Rental,26/02/2014,580.83,1278557,A035373,Virgin Media Business
North West Leicestershire District Council,31UH,PROPFM,Property Services,Property Facilities Management,Water Charges (Metered),26/02/2014,"2,563.52",1278602,A001468,Severn Trent Water Limited
North West Leicestershire District Council,31UH,CS,Communications,Corporate - Customer Services,Postages,26/02/2014,"5,000.00",1278629,A000079,Neopost Limited
North West Leicestershire District Council,31UH,EES,Environmental Health,Environmental Services,Grants,26/02/2014,"3,229.24",1278859,A001092,John Merison BMC Ltd
North West Leicestershire District Council,31UH,EES,Environmental Health,Environmental Services,Grants,26/02/2014,"4,370.00",1278860,A038469,Leicestershire County Council
North West Leicestershire District Council,31UH,EES,Environmental Health,Environmental Services,Grants,26/02/2014,"3,112.04",1278861,A038668,Adaptions
North West Leicestershire District Council,31UH,ICT,Information Technology,ICT Services,Admin Equipment - Purchased & Recharged,26/02/2014,630.00,1278607,A001861,Vodafone Limited
North West Leicestershire District Council,31UH,NACCS,Neighbourhoods & Communities,N & C Community Safety,Extended Services,26/02/2014,"11,044.80",1278609,A039843,Women's Aid Leicestershire Ltd
North West Leicestershire District Council,31UH,NACCS,Neighbourhoods & Communities,N & C Community Safety,Extended Services,26/02/2014,"8,100.00",1278610,A039843,Women's Aid Leicestershire Ltd
North West Leicestershire District Council,31UH,NACCS,Neighbourhoods & Communities,N & C Community Safety,Extended Services,26/02/2014,"1,855.80",1278611,A039843,Women's Aid Leicestershire Ltd
North West Leicestershire District Council,31UH,ECCTV,Planning & Development,Environment - Town Centre/CCTV,Town Centre Regeneration,26/02/2014,"1,886.00",1278619,A040964,Emmerson Doors Ltd
North West Leicestershire District Council,31UH,HR,Corporate Director,Human Resources,Items To Be Leased,26/02/2014,"2,554.24",1278626,A035549,Arnold Clark Vehicle Management
North West Leicestershire District Council,31UH,EXCH,Finance,Exchequer Services,Mobile Telephones,26/02/2014,"5,216.78",1278870,A001861,Vodafone Limited
North West Leicestershire District Council,31UH,EXCH,Finance,Exchequer Services,Gas,26/02/2014,"7,275.36",1278867,A000958,ESPO
North West Leicestershire District Council,31UH,EXCH,Finance,Exchequer Services,Gas,26/02/2014,"19,107.31",1278868,A035709,Corona Energy Retail 4 Ltd
North West Leicestershire District Council,31UH,HRAHRM,Housing Repairs,HRA Housing Repairs & Maintenance,Contract Payments (Dws) Ext,26/02/2014,"14,754.90",1278862,A031474,Savills
North West Leicestershire District Council,31UH,HRAHRM,Housing Repairs,HRA Housing Repairs & Maintenance,Contract Payments (Dws) Ext,26/02/2014,"13,954.90",1278863,A031474,Savills
North West Leicestershire District Council,31UH,HRAHRM,Housing Repairs,HRA Housing Repairs & Maintenance,Greenhill,29/01/2014,637.00,1276305,A031086,Premier Waste and Recycling
North West Leicestershire District Council,31UH,HRAHRM,Housing Repairs,HRA Housing Repairs & Maintenance,Whitwick,29/01/2014,500.00,1276306,A031086,Premier Waste and Recycling
North West Leicestershire District Council,31UH,HRAHRM,Housing Repairs,HRA Housing Repairs & Maintenance,Coleorton & Swannington,29/01/2014,705.24,1276308,A031086,Premier Waste and Recycling
North West Leicestershire District Council,31UH,HRAHRM,Housing Repairs,HRA Housing Repairs & Maintenance,Albert Vilage etc,29/01/2014,"1,900.00",1276309,A031086,Premier Waste and Recycling
North West Leicestershire District Council,31UH,HRAHRM,Housing Repairs,HRA Housing Repairs & Maintenance,Ashby De la Zouche,29/01/2014,"1,029.45",1276310,A031086,Premier Waste and Recycling
North West Leicestershire District Council,31UH,HRAHRM,Housing Repairs,HRA Housing Repairs & Maintenance,Ashby De la Zouche,29/01/2014,"1,347.60",1276432,A035675,Elite Sweep Service
North West Leicestershire District Council,31UH,HRAHRM,Housing Repairs,HRA Housing Repairs & Maintenance,Contract Payments (Dws) Ext,29/01/2014,622.33,1276434,A026237,British Gas Trading Limited
North West Leicestershire District Council,31UH,HRAHRM,Housing Repairs,HRA Housing Repairs & Maintenance,Castle Donington etc,29/01/2014,"3,076.94",1276436,A031787,Laker BMS Ltd
North West Leicestershire District Council,31UH,HRAHRM,Housing Repairs,HRA Housing Repairs & Maintenance,Castle Donington etc,29/01/2014,606.23,1276304,A031086,Premier Waste and Recycling
North West Leicestershire District Council,31UH,HRAHRM,Housing Repairs,HRA Housing Repairs & Maintenance,Ibstock,29/01/2014,606.23,1276303,A031086,Premier Waste and Recycling
North West Leicestershire District Council,31UH,HRAHRM,Housing Repairs,HRA Housing Repairs & Maintenance,Whitwick,29/01/2014,545.73,1276302,A031086,Premier Waste and Recycling
North West Leicestershire District Council,31UH,HRAHRM,Housing Repairs,HRA Housing Repairs & Maintenance,Albert Vilage etc,29/01/2014,647.01,1276299,A031086,Premier Waste and Recycling
North West Leicestershire District Council,31UH,HRAHRM,Housing Repairs,HRA Housing Repairs & Maintenance,Ellistown etc,29/01/2014,506.29,1276296,A031086,Premier Waste and Recycling
North West Leicestershire District Council,31UH,HRAHRM,Housing Repairs,HRA Housing Repairs & Maintenance,Ashby De la Zouche,29/01/2014,"1,082.05",1276453,A033342,J Tomlinson Ltd
North West Leicestershire District Council,31UH,HRAHRM,Housing Repairs,HRA Housing Repairs & Maintenance,Measham,29/01/2014,"2,194.16",1276454,A033342,J Tomlinson Ltd
North West Leicestershire District Council,31UH,HRAHRM,Housing Repairs,HRA Housing Repairs & Maintenance,Whitwick,29/01/2014,655.21,1276460,A033342,J Tomlinson Ltd
North West Leicestershire District Council,31UH,HRAHRM,Housing Repairs,HRA Housing Repairs & Maintenance,Ibstock,29/01/2014,"1,817.07",1276509,A036741,SBP Limited (Trading as Plastal & Permadoor)
North West Leicestershire District Council,31UH,HRAHRM,Housing Repairs,HRA Housing Repairs & Maintenance,Ellistown etc,29/01/2014,"1,806.19",1276510,A036741,SBP Limited (Trading as Plastal & Permadoor)
North West Leicestershire District Council,31UH,HRAHRM,Housing Repairs,HRA Housing Repairs & Maintenance,Ibstock,29/01/2014,"1,818.98",1276512,A036741,SBP Limited (Trading as Plastal & Permadoor)
North West Leicestershire District Council,31UH,HRAHRM,Housing Repairs,HRA Housing Repairs & Maintenance,Albert Vilage etc,29/01/2014,539.91,1276516,A038041,I G Doors Limited
North West Leicestershire District Council,31UH,HRAHRM,Housing Repairs,HRA Housing Repairs & Maintenance,Contract Payments (Dws) Ext,05/02/2014,"3,729.05",1276958,A039980,Kier Services Maintenance East Ltd
North West Leicestershire District Council,31UH,HRAHRM,Housing Repairs,HRA Housing Repairs & Maintenance,Contract Payments (Dws) Ext,05/02/2014,587.45,1276959,A039980,Kier Services Maintenance East Ltd
North West Leicestershire District Council,31UH,HRAHRM,Housing Repairs,HRA Housing Repairs & Maintenance,Contract Payments (Dws) Ext,05/02/2014,965.02,1276960,A039980,Kier Services Maintenance East Ltd
North West Leicestershire District Council,31UH,HRAHRM,Housing Repairs,HRA Housing Repairs & Maintenance,Kegworth etc,29/01/2014,685.75,1276487,A038041,I G Doors Limited
North West Leicestershire District Council,31UH,HRAHRM,Housing Repairs,HRA Housing Repairs & Maintenance,Albert Vilage etc,29/01/2014,539.91,1276488,A038041,I G Doors Limited
North West Leicestershire District Council,31UH,HRAHRM,Housing Repairs,HRA Housing Repairs & Maintenance,Albert Vilage etc,29/01/2014,539.91,1276489,A038041,I G Doors Limited
North West Leicestershire District Council,31UH,HRAHRM,Housing Repairs,HRA Housing Repairs & Maintenance,Coalville,29/01/2014,"2,792.86",1276498,A033342,J Tomlinson Ltd
North West Leicestershire District Council,31UH,HRAHRM,Housing Repairs,HRA Housing Repairs & Maintenance,Coalville,29/01/2014,"2,920.92",1276507,A036741,SBP Limited (Trading as Plastal & Permadoor)
North West Leicestershire District Council,31UH,HRAHRM,Housing Repairs,HRA Housing Repairs & Maintenance,Castle Donington etc,29/01/2014,759.16,1276508,A036741,SBP Limited (Trading as Plastal & Permadoor)
North West Leicestershire District Council,31UH,HRAHRM,Housing Repairs,HRA Housing Repairs & Maintenance,Ashby De la Zouche,29/01/2014,685.75,1276490,A038041,I G Doors Limited
North West Leicestershire District Council,31UH,HRAHRM,Housing Repairs,HRA Housing Repairs & Maintenance,Coalville,29/01/2014,"1,052.80",1276497,A033342,J Tomlinson Ltd
North West Leicestershire District Council,31UH,HRAHRM,Housing Repairs,HRA Housing Repairs & Maintenance,Contract Payments (Dws) Ext,05/02/2014,994.63,1276962,A039980,Kier Services Maintenance East Ltd
North West Leicestershire District Council,31UH,HRAHRM,Housing Repairs,HRA Housing Repairs & Maintenance,Contract Payments (Dws) Ext,05/02/2014,"9,697.76",1276963,A039980,Kier Services Maintenance East Ltd
North West Leicestershire District Council,31UH,HRAHRM,Housing Repairs,HRA Housing Repairs & Maintenance,Contract Payments (Dws) Ext,05/02/2014,581.98,1276964,A039980,Kier Services Maintenance East Ltd
North West Leicestershire District Council,31UH,HRAHRM,Housing Repairs,HRA Housing Repairs & Maintenance,Contract Payments (Dws) Ext,05/02/2014,"11,998.70",1276965,A039980,Kier Services Maintenance East Ltd
North West Leicestershire District Council,31UH,HRAHRM,Housing Repairs,HRA Housing Repairs & Maintenance,Contract Payments (Dws) Ext,05/02/2014,"9,323.09",1276966,A039980,Kier Services Maintenance East Ltd
North West Leicestershire District Council,31UH,HRAHRM,Housing Repairs,HRA Housing Repairs & Maintenance,Contract Payments (Dws) Ext,05/02/2014,581.98,1276967,A039980,Kier Services Maintenance East Ltd
North West Leicestershire District Council,31UH,HRAHRM,Housing Repairs,HRA Housing Repairs & Maintenance,Contract Payments (Dws) Ext,05/02/2014,"6,941.87",1276968,A039980,Kier Services Maintenance East Ltd
North West Leicestershire District Council,31UH,HRAHRM,Housing Repairs,HRA Housing Repairs & Maintenance,Contract Payments (Dws) Ext,05/02/2014,581.98,1276961,A039980,Kier Services Maintenance East Ltd
North West Leicestershire District Council,31UH,HRAHRM,Housing Repairs,HRA Housing Repairs & Maintenance,Newbold Coleorton etc,05/02/2014,"3,098.10",1276996,A031787,Laker BMS Ltd
North West Leicestershire District Council,31UH,HRAHRM,Housing Repairs,HRA Housing Repairs & Maintenance,Greenhill,05/02/2014,504.27,1277009,A031787,Laker BMS Ltd
North West Leicestershire District Council,31UH,HRAHRM,Housing Repairs,HRA Housing Repairs & Maintenance,Greenhill,05/02/2014,"1,716.78",1277043,A031787,Laker BMS Ltd
North West Leicestershire District Council,31UH,HRAHRM,Housing Repairs,HRA Housing Repairs & Maintenance,Whitwick,05/02/2014,"6,739.30",1277058,A036945,Apollo Property Services Group Limited
North West Leicestershire District Council,31UH,HRAHRM,Housing Repairs,HRA Housing Repairs & Maintenance,Ashby De la Zouche,05/02/2014,"6,557.86",1277059,A036945,Apollo Property Services Group Limited
North West Leicestershire District Council,31UH,HRAHRM,Housing Repairs,HRA Housing Repairs & Maintenance,Whitwick,05/02/2014,"6,545.26",1277060,A036945,Apollo Property Services Group Limited
North West Leicestershire District Council,31UH,HRAHRM,Housing Repairs,HRA Housing Repairs & Maintenance,Coalville,05/02/2014,"8,433.02",1277061,A036945,Apollo Property Services Group Limited
North West Leicestershire District Council,31UH,HRAHRM,Housing Repairs,HRA Housing Repairs & Maintenance,Greenhill,05/02/2014,"5,114.34",1277062,A036945,Apollo Property Services Group Limited
North West Leicestershire District Council,31UH,HRAHRM,Housing Repairs,HRA Housing Repairs & Maintenance,Greenhill,05/02/2014,"5,114.34",1277063,A036945,Apollo Property Services Group Limited
North West Leicestershire District Council,31UH,HRAHRM,Housing Repairs,HRA Housing Repairs & Maintenance,Greenhill,05/02/2014,"5,114.34",1277064,A036945,Apollo Property Services Group Limited
North West Leicestershire District Council,31UH,HRAHRM,Housing Repairs,HRA Housing Repairs & Maintenance,Albert Vilage etc,05/02/2014,"2,142.43",1277050,A033342,J Tomlinson Ltd
North West Leicestershire District Council,31UH,HRAHRM,Housing Repairs,HRA Housing Repairs & Maintenance,Kegworth etc,05/02/2014,996.72,1277051,A033342,J Tomlinson Ltd
North West Leicestershire District Council,31UH,HRAHRM,Housing Repairs,HRA Housing Repairs & Maintenance,Ashby De la Zouche,05/02/2014,"2,319.13",1277052,A033342,J Tomlinson Ltd
North West Leicestershire District Council,31UH,HRAHRM,Housing Repairs,HRA Housing Repairs & Maintenance,Coalville,05/02/2014,"2,101.92",1277053,A033342,J Tomlinson Ltd
North West Leicestershire District Council,31UH,HRAHRM,Housing Repairs,HRA Housing Repairs & Maintenance,Coalville,05/02/2014,"8,711.40",1277054,A033342,J Tomlinson Ltd
North West Leicestershire District Council,31UH,HRAHRM,Housing Repairs,HRA Housing Repairs & Maintenance,Coalville,05/02/2014,"1,564.50",1277055,A033342,J Tomlinson Ltd
North West Leicestershire District Council,31UH,HRAHRM,Housing Repairs,HRA Housing Repairs & Maintenance,Whitwick,05/02/2014,"6,323.50",1277057,A036945,Apollo Property Services Group Limited
North West Leicestershire District Council,31UH,HRAHRM,Housing Repairs,HRA Housing Repairs & Maintenance,Whitwick,05/02/2014,"5,739.63",1277070,A031787,Laker BMS Ltd
North West Leicestershire District Council,31UH,HRAHRM,Housing Repairs,HRA Housing Repairs & Maintenance,Whitwick,05/02/2014,598.00,1277071,A031787,Laker BMS Ltd
North West Leicestershire District Council,31UH,HRAHRM,Housing Repairs,HRA Housing Repairs & Maintenance,Ashby De la Zouche,05/02/2014,"1,010.00",1277081,A035827,Novus Property Solutions Limited
North West Leicestershire District Council,31UH,HRAHRM,Housing Repairs,HRA Housing Repairs & Maintenance,General Repairs,05/02/2014,"3,010.00",1277083,A035827,Novus Property Solutions Limited
North West Leicestershire District Council,31UH,HRAHRM,Housing Repairs,HRA Housing Repairs & Maintenance,Newbold Coleorton etc,12/02/2014,740.00,1277754,A035675,Elite Sweep Service
North West Leicestershire District Council,31UH,HRAHRM,Housing Repairs,HRA Housing Repairs & Maintenance,Contract Payments (Dws) Ext,12/02/2014,"3,179.00",1277755,A000950,Leicestershire County Council
North West Leicestershire District Council,31UH,HRAHRM,Housing Repairs,HRA Housing Repairs & Maintenance,Contract Payments (Dws) Ext,12/02/2014,"3,434.00",1277756,A000950,Leicestershire County Council
North West Leicestershire District Council,31UH,HRAHRM,Housing Repairs,HRA Housing Repairs & Maintenance,Coleorton & Swannington,12/02/2014,708.20,1277775,A031086,Premier Waste and Recycling
North West Leicestershire District Council,31UH,HRAHRM,Housing Repairs,HRA Housing Repairs & Maintenance,Coleorton & Swannington,12/02/2014,708.20,1277776,A031086,Premier Waste and Recycling
North West Leicestershire District Council,31UH,HRAHRM,Housing Repairs,HRA Housing Repairs & Maintenance,Kegworth etc,12/02/2014,"2,125.10",1277808,A033342,J Tomlinson Ltd
North West Leicestershire District Council,31UH,HRAHRM,Housing Repairs,HRA Housing Repairs & Maintenance,Ellistown etc,12/02/2014,630.00,1277813,A035827,Novus Property Solutions Limited
North West Leicestershire District Council,31UH,HRAHRM,Housing Repairs,HRA Housing Repairs & Maintenance,Ellistown etc,12/02/2014,670.00,1277849,A035827,Novus Property Solutions Limited
North West Leicestershire District Council,31UH,HRAHRM,Housing Repairs,HRA Housing Repairs & Maintenance,Internal Painting,12/02/2014,"20,434.75",1277850,A035827,Novus Property Solutions Limited
North West Leicestershire District Council,31UH,HRAHRM,Housing Repairs,HRA Housing Repairs & Maintenance,Internal Painting,12/02/2014,"9,496.76",1277851,A035827,Novus Property Solutions Limited
North West Leicestershire District Council,31UH,HRAHRM,Housing Repairs,HRA Housing Repairs & Maintenance,Internal Painting,12/02/2014,"10,306.35",1277852,A035827,Novus Property Solutions Limited
North West Leicestershire District Council,31UH,HRAHRM,Housing Repairs,HRA Housing Repairs & Maintenance,Albert Vilage etc,12/02/2014,"3,629.00",1277842,A035827,Novus Property Solutions Limited
North West Leicestershire District Council,31UH,HRAHRM,Housing Repairs,HRA Housing Repairs & Maintenance,Ellistown etc,12/02/2014,"1,117.74",1277843,A035827,Novus Property Solutions Limited
North West Leicestershire District Council,31UH,HRAHRM,Housing Repairs,HRA Housing Repairs & Maintenance,Ellistown etc,12/02/2014,"2,550.81",1277844,A035827,Novus Property Solutions Limited
North West Leicestershire District Council,31UH,HRAHRM,Housing Repairs,HRA Housing Repairs & Maintenance,Ellistown etc,12/02/2014,"1,854.02",1277845,A035827,Novus Property Solutions Limited
North West Leicestershire District Council,31UH,HRAHRM,Housing Repairs,HRA Housing Repairs & Maintenance,Ellistown etc,12/02/2014,784.44,1277846,A035827,Novus Property Solutions Limited
North West Leicestershire District Council,31UH,HRAHRM,Housing Repairs,HRA Housing Repairs & Maintenance,Ellistown etc,12/02/2014,"1,500.00",1277847,A035827,Novus Property Solutions Limited
North West Leicestershire District Council,31UH,HRAHRM,Housing Repairs,HRA Housing Repairs & Maintenance,Ellistown etc,12/02/2014,670.00,1277848,A035827,Novus Property Solutions Limited
North West Leicestershire District Council,31UH,HRAHRM,Housing Repairs,HRA Housing Repairs & Maintenance,Ashby De la Zouche,19/02/2014,500.00,1278152,A008757,Ksa Consulting Engineers Ltd
North West Leicestershire District Council,31UH,HRAHRM,Housing Repairs,HRA Housing Repairs & Maintenance,Boiler - Gas,19/02/2014,622.33,1278153,A026237,British Gas Trading Limited
North West Leicestershire District Council,31UH,HRAHRM,Housing Repairs,HRA Housing Repairs & Maintenance,Contract Payments (Dws) Ext,19/02/2014,622.33,1278154,A026237,British Gas Trading Limited
North West Leicestershire District Council,31UH,HRAHRM,Housing Repairs,HRA Housing Repairs & Maintenance,Ellistown etc,19/02/2014,871.14,1278180,A033342,J Tomlinson Ltd
North West Leicestershire District Council,31UH,HRAHRM,Housing Repairs,HRA Housing Repairs & Maintenance,Ellistown etc,19/02/2014,871.14,1278181,A033342,J Tomlinson Ltd
North West Leicestershire District Council,31UH,HRAHRM,Housing Repairs,HRA Housing Repairs & Maintenance,Ellistown etc,19/02/2014,871.14,1278182,A033342,J Tomlinson Ltd
North West Leicestershire District Council,31UH,HRAHRM,Housing Repairs,HRA Housing Repairs & Maintenance,Ellistown etc,19/02/2014,871.14,1278183,A033342,J Tomlinson Ltd
North West Leicestershire District Council,31UH,HRAHRM,Housing Repairs,HRA Housing Repairs & Maintenance,Ellistown etc,19/02/2014,871.14,1278184,A033342,J Tomlinson Ltd
North West Leicestershire District Council,31UH,HRAHRM,Housing Repairs,HRA Housing Repairs & Maintenance,Ellistown etc,19/02/2014,871.14,1278185,A033342,J Tomlinson Ltd
North West Leicestershire District Council,31UH,HRAHRM,Housing Repairs,HRA Housing Repairs & Maintenance,Ellistown etc,19/02/2014,871.14,1278186,A033342,J Tomlinson Ltd
North West Leicestershire District Council,31UH,HRAHRM,Housing Repairs,HRA Housing Repairs & Maintenance,Ellistown etc,19/02/2014,871.14,1278187,A033342,J Tomlinson Ltd
North West Leicestershire District Council,31UH,HRAHRM,Housing Repairs,HRA Housing Repairs & Maintenance,Ellistown etc,19/02/2014,871.14,1278188,A033342,J Tomlinson Ltd
North West Leicestershire District Council,31UH,HRAHRM,Housing Repairs,HRA Housing Repairs & Maintenance,Ellistown etc,19/02/2014,871.14,1278189,A033342,J Tomlinson Ltd
North West Leicestershire District Council,31UH,HRAHRM,Housing Repairs,HRA Housing Repairs & Maintenance,Measham,19/02/2014,"3,863.91",1278210,A033342,J Tomlinson Ltd
North West Leicestershire District Council,31UH,HRAHRM,Housing Repairs,HRA Housing Repairs & Maintenance,Ashby De la Zouche,19/02/2014,"6,292.70",1278211,A033342,J Tomlinson Ltd
North West Leicestershire District Council,31UH,HRAHRM,Housing Repairs,HRA Housing Repairs & Maintenance,Ellistown etc,19/02/2014,770.13,1278223,A033342,J Tomlinson Ltd
North West Leicestershire District Council,31UH,HRAHRM,Housing Repairs,HRA Housing Repairs & Maintenance,Ibstock,19/02/2014,998.54,1278225,A035827,Novus Property Solutions Limited
North West Leicestershire District Council,31UH,HRAHRM,Housing Repairs,HRA Housing Repairs & Maintenance,Ibstock,19/02/2014,998.54,1278226,A035827,Novus Property Solutions Limited
North West Leicestershire District Council,31UH,HRAHRM,Housing Repairs,HRA Housing Repairs & Maintenance,Ibstock,19/02/2014,998.54,1278227,A035827,Novus Property Solutions Limited
North West Leicestershire District Council,31UH,HRAHRM,Housing Repairs,HRA Housing Repairs & Maintenance,Ibstock,19/02/2014,998.54,1278228,A035827,Novus Property Solutions Limited
North West Leicestershire District Council,31UH,HRAHRM,Housing Repairs,HRA Housing Repairs & Maintenance,Ibstock,19/02/2014,998.54,1278229,A035827,Novus Property Solutions Limited
North West Leicestershire District Council,31UH,HRAHRM,Housing Repairs,HRA Housing Repairs & Maintenance,Ibstock,19/02/2014,998.54,1278243,A035827,Novus Property Solutions Limited
North West Leicestershire District Council,31UH,HRAHRM,Housing Repairs,HRA Housing Repairs & Maintenance,Ibstock,19/02/2014,998.54,1278244,A035827,Novus Property Solutions Limited
North West Leicestershire District Council,31UH,HRAHRM,Housing Repairs,HRA Housing Repairs & Maintenance,Ibstock,19/02/2014,998.54,1278245,A035827,Novus Property Solutions Limited
North West Leicestershire District Council,31UH,HRAHRM,Housing Repairs,HRA Housing Repairs & Maintenance,Ibstock,19/02/2014,998.54,1278246,A035827,Novus Property Solutions Limited
North West Leicestershire District Council,31UH,HRAHRM,Housing Repairs,HRA Housing Repairs & Maintenance,Plumbing & Heating,19/02/2014,"3,058.75",1278248,A000950,Leicestershire County Council
North West Leicestershire District Council,31UH,HRAHRM,Housing Repairs,HRA Housing Repairs & Maintenance,Contract Payments (Dws) Ext,19/02/2014,"1,528.71",1278252,A039980,Kier Services Maintenance East Ltd
North West Leicestershire District Council,31UH,HRAHRM,Housing Repairs,HRA Housing Repairs & Maintenance,Contract Payments (Dws) Ext,19/02/2014,967.73,1278253,A039980,Kier Services Maintenance East Ltd
North West Leicestershire District Council,31UH,HRAHRM,Housing Repairs,HRA Housing Repairs & Maintenance,Contract Payments (Dws) Ext,19/02/2014,"1,066.50",1278254,A039980,Kier Services Maintenance East Ltd
North West Leicestershire District Council,31UH,HRAHRM,Housing Repairs,HRA Housing Repairs & Maintenance,Ibstock,19/02/2014,998.54,1278231,A035827,Novus Property Solutions Limited
North West Leicestershire District Council,31UH,HRAHRM,Housing Repairs,HRA Housing Repairs & Maintenance,Ibstock,19/02/2014,998.54,1278232,A035827,Novus Property Solutions Limited
North West Leicestershire District Council,31UH,HRAHRM,Housing Repairs,HRA Housing Repairs & Maintenance,Ibstock,19/02/2014,998.54,1278233,A035827,Novus Property Solutions Limited
North West Leicestershire District Council,31UH,HRAHRM,Housing Repairs,HRA Housing Repairs & Maintenance,Ibstock,19/02/2014,998.54,1278234,A035827,Novus Property Solutions Limited
North West Leicestershire District Council,31UH,HRAHRM,Housing Repairs,HRA Housing Repairs & Maintenance,Ibstock,19/02/2014,998.54,1278235,A035827,Novus Property Solutions Limited
North West Leicestershire District Council,31UH,HRAHRM,Housing Repairs,HRA Housing Repairs & Maintenance,Ibstock,19/02/2014,998.54,1278236,A035827,Novus Property Solutions Limited
North West Leicestershire District Council,31UH,HRAHRM,Housing Repairs,HRA Housing Repairs & Maintenance,Ibstock,19/02/2014,998.54,1278237,A035827,Novus Property Solutions Limited
North West Leicestershire District Council,31UH,HRAHRM,Housing Repairs,HRA Housing Repairs & Maintenance,Ibstock,19/02/2014,998.54,1278238,A035827,Novus Property Solutions Limited
North West Leicestershire District Council,31UH,HRAHRM,Housing Repairs,HRA Housing Repairs & Maintenance,Ibstock,19/02/2014,998.66,1278239,A035827,Novus Property Solutions Limited
North West Leicestershire District Council,31UH,HRAHRM,Housing Repairs,HRA Housing Repairs & Maintenance,Coalville,26/02/2014,535.70,1278783,A033342,J Tomlinson Ltd
North West Leicestershire District Council,31UH,HRAHRM,Housing Repairs,HRA Housing Repairs & Maintenance,Ibstock,19/02/2014,998.54,1278240,A035827,Novus Property Solutions Limited
North West Leicestershire District Council,31UH,HRAHRM,Housing Repairs,HRA Housing Repairs & Maintenance,Ibstock,19/02/2014,998.54,1278241,A035827,Novus Property Solutions Limited
North West Leicestershire District Council,31UH,HRAHRM,Housing Repairs,HRA Housing Repairs & Maintenance,Ibstock,19/02/2014,998.54,1278242,A035827,Novus Property Solutions Limited
North West Leicestershire District Council,31UH,HRAHRM,Housing Repairs,HRA Housing Repairs & Maintenance,Ibstock,19/02/2014,998.54,1278230,A035827,Novus Property Solutions Limited
North West Leicestershire District Council,31UH,HRAHRM,Housing Repairs,HRA Housing Repairs & Maintenance,Contract Payments (Dws) Ext,19/02/2014,"2,472.74",1278258,A039980,Kier Services Maintenance East Ltd
North West Leicestershire District Council,31UH,HRAHRM,Housing Repairs,HRA Housing Repairs & Maintenance,Contract Payments (Dws) Ext,19/02/2014,"9,015.95",1278259,A039980,Kier Services Maintenance East Ltd
North West Leicestershire District Council,31UH,HRAHRM,Housing Repairs,HRA Housing Repairs & Maintenance,Contract Payments (Dws) Ext,19/02/2014,"1,053.12",1278260,A039980,Kier Services Maintenance East Ltd
North West Leicestershire District Council,31UH,HRAHRM,Housing Repairs,HRA Housing Repairs & Maintenance,Contract Payments (Dws) Ext,19/02/2014,"2,538.32",1278263,A039980,Kier Services Maintenance East Ltd
North West Leicestershire District Council,31UH,HRAHRM,Housing Repairs,HRA Housing Repairs & Maintenance,Contract Payments (Dws) Ext,19/02/2014,"3,522.26",1278255,A039980,Kier Services Maintenance East Ltd
North West Leicestershire District Council,31UH,HRAHRM,Housing Repairs,HRA Housing Repairs & Maintenance,Contract Payments (Dws) Ext,19/02/2014,"15,038.54",1278269,A039980,Kier Services Maintenance East Ltd
North West Leicestershire District Council,31UH,HRAHRM,Housing Repairs,HRA Housing Repairs & Maintenance,Contract Payments (Dws) Ext,19/02/2014,"4,844.04",1278270,A039980,Kier Services Maintenance East Ltd
North West Leicestershire District Council,31UH,HRAHRM,Housing Repairs,HRA Housing Repairs & Maintenance,Contract Payments (Dws) Ext,19/02/2014,"5,209.91",1278271,A039980,Kier Services Maintenance East Ltd
North West Leicestershire District Council,31UH,HRAHRM,Housing Repairs,HRA Housing Repairs & Maintenance,Contract Payments (Dws) Ext,19/02/2014,"4,783.26",1278273,A039980,Kier Services Maintenance East Ltd
North West Leicestershire District Council,31UH,HRAHRM,Housing Repairs,HRA Housing Repairs & Maintenance,Contract Payments (Dws) Ext,19/02/2014,"1,225.58",1278274,A039980,Kier Services Maintenance East Ltd
North West Leicestershire District Council,31UH,HRAHRM,Housing Repairs,HRA Housing Repairs & Maintenance,Ellistown etc,26/02/2014,871.14,1278829,A033342,J Tomlinson Ltd
North West Leicestershire District Council,31UH,HRAHRM,Housing Repairs,HRA Housing Repairs & Maintenance,Miscellaneous,26/02/2014,923.00,1278832,A041182,Ash Aluminium
North West Leicestershire District Council,31UH,HRAHRM,Housing Repairs,HRA Housing Repairs & Maintenance,Ellistown etc,26/02/2014,871.14,1278806,A033342,J Tomlinson Ltd
North West Leicestershire District Council,31UH,HRAHRM,Housing Repairs,HRA Housing Repairs & Maintenance,Ellistown etc,26/02/2014,871.14,1278807,A033342,J Tomlinson Ltd
North West Leicestershire District Council,31UH,HRAHRM,Housing Repairs,HRA Housing Repairs & Maintenance,Ellistown etc,26/02/2014,871.14,1278808,A033342,J Tomlinson Ltd
North West Leicestershire District Council,31UH,HRAHRM,Housing Repairs,HRA Housing Repairs & Maintenance,Ellistown etc,26/02/2014,871.14,1278809,A033342,J Tomlinson Ltd
North West Leicestershire District Council,31UH,HRAHRM,Housing Repairs,HRA Housing Repairs & Maintenance,Ellistown etc,26/02/2014,871.14,1278810,A033342,J Tomlinson Ltd
North West Leicestershire District Council,31UH,HRAHRM,Housing Repairs,HRA Housing Repairs & Maintenance,Ellistown etc,26/02/2014,871.14,1278811,A033342,J Tomlinson Ltd
North West Leicestershire District Council,31UH,HRAHRM,Housing Repairs,HRA Housing Repairs & Maintenance,Ellistown etc,26/02/2014,871.14,1278812,A033342,J Tomlinson Ltd
North West Leicestershire District Council,31UH,HRAHRM,Housing Repairs,HRA Housing Repairs & Maintenance,Miscellaneous,26/02/2014,904.00,1278839,A041182,Ash Aluminium
North West Leicestershire District Council,31UH,HRAHRM,Housing Repairs,HRA Housing Repairs & Maintenance,Miscellaneous,26/02/2014,566.00,1278841,A041182,Ash Aluminium
North West Leicestershire District Council,31UH,HRAHRM,Housing Repairs,HRA Housing Repairs & Maintenance,Miscellaneous,26/02/2014,"1,130.00",1278843,A041182,Ash Aluminium
North West Leicestershire District Council,31UH,HRAHRM,Housing Repairs,HRA Housing Repairs & Maintenance,Miscellaneous,26/02/2014,589.00,1278833,A041182,Ash Aluminium
North West Leicestershire District Council,31UH,HRAHRM,Housing Repairs,HRA Housing Repairs & Maintenance,Miscellaneous,26/02/2014,"1,013.00",1278834,A041182,Ash Aluminium
North West Leicestershire District Council,31UH,HRAHRM,Housing Repairs,HRA Housing Repairs & Maintenance,Miscellaneous,26/02/2014,"1,023.00",1278846,A041182,Ash Aluminium
North West Leicestershire District Council,31UH,HRAHRM,Housing Repairs,HRA Housing Repairs & Maintenance,Miscellaneous,26/02/2014,579.00,1278847,A041182,Ash Aluminium
North West Leicestershire District Council,31UH,HRAHRM,Housing Repairs,HRA Housing Repairs & Maintenance,Ashby De la Zouche,26/02/2014,"2,400.00",1278882,A031787,Laker BMS Ltd
North West Leicestershire District Council,31UH,HRAHRM,Housing Repairs,HRA Housing Repairs & Maintenance,Ellistown etc,26/02/2014,682.66,1278948,A035827,Novus Property Solutions Limited
North West Leicestershire District Council,31UH,HRAHRM,Housing Repairs,HRA Housing Repairs & Maintenance,Castle Donington etc,26/02/2014,"1,117.00",1278949,A035827,Novus Property Solutions Limited
North West Leicestershire District Council,31UH,HRAHRM,Housing Repairs,HRA Housing Repairs & Maintenance,Castle Donington etc,26/02/2014,630.00,1278927,A035827,Novus Property Solutions Limited
North West Leicestershire District Council,31UH,HRAHRM,Housing Repairs,HRA Housing Repairs & Maintenance,Whitwick,26/02/2014,"1,548.56",1278928,A035827,Novus Property Solutions Limited
North West Leicestershire District Council,31UH,HRAHRM,Housing Repairs,HRA Housing Repairs & Maintenance,Internal Painting,26/02/2014,"9,467.90",1278934,A035827,Novus Property Solutions Limited
North West Leicestershire District Council,31UH,HRAHRM,Housing Repairs,HRA Housing Repairs & Maintenance,Internal Painting,26/02/2014,"12,849.10",1278935,A035827,Novus Property Solutions Limited
North West Leicestershire District Council,31UH,HRAHRM,Housing Repairs,HRA Housing Repairs & Maintenance,Eviction Of Tenants,26/02/2014,"1,057.71",1278939,A031086,Premier Waste and Recycling
North West Leicestershire District Council,31UH,HRAHRM,Housing Repairs,HRA Housing Repairs & Maintenance,Kegworth etc,26/02/2014,539.91,1278941,A038041,I G Doors Limited
North West Leicestershire District Council,31UH,EDC,Planning & Development,Environment - Development Control,Advertising,29/01/2014,"1,273.86",1276167,A001395,Euro RSCG People T/A Havas People Ltd
North West Leicestershire District Council,31UH,EDC,Planning & Development,Environment - Development Control,Advertising,29/01/2014,696.35,1276170,A001395,Euro RSCG People T/A Havas People Ltd
North West Leicestershire District Council,31UH,HRAOPS,Housing,HRA Older Persons Service,Alarm System Telephones,29/01/2014,"12,050.00",1276210,A001701,Tunstall Healthcare (UK) Limited
North West Leicestershire District Council,31UH,ESS,Street Management,Environment - Street Scene,Computer Software Maintenance,29/01/2014,"1,850.00",1276181,A029730,Clear Skies Software Ltd
North West Leicestershire District Council,31UH,ENOT,Street Management,Environment Transport,Hire Of Transport,29/01/2014,"1,130.00",1276182,A038553,M6 Vehicle Hire
North West Leicestershire District Council,31UH,ESS,Street Management,Environment - Street Scene,Agency Staff,29/01/2014,"1,155.60",1276209,A031571,HBHC Synergy Ltd
North West Leicestershire District Council,31UH,REVS,Finance,Revenues,Computing,29/01/2014,"7,500.00",1276230,A041024,nform CPI Ltd
North West Leicestershire District Council,31UH,ICT,Information Technology,ICT Services,Corporate IT Licences,29/01/2014,890.00,1276231,A012633,Socitm Ltd
North West Leicestershire District Council,31UH,PROPFM,Property Services,Property Facilities Management,Purchases,29/01/2014,"6,979.60",1276232,A031787,Laker BMS Ltd
North West Leicestershire District Council,31UH,PROPFM,Property Services,Property Facilities Management,Purchases,29/01/2014,"3,943.25",1276233,A031787,Laker BMS Ltd
North West Leicestershire District Council,31UH,HRAHRM,Housing Repairs,HRA Housing Repairs & Maintenance,General Materials,29/01/2014,"1,235.00",1276191,A040963,Greasley Electronics Ltd
North West Leicestershire District Council,31UH,HR,Corporate Director,Human Resources,Operational Equipment,29/01/2014,"9,494.20",1276273,A041140,Exertis Micro-P
North West Leicestershire District Council,31UH,ENOT,Street Management,Environment Transport,Service Improvements,29/01/2014,880.00,1276274,A038664,Innovative Safety Systems Limited
North West Leicestershire District Council,31UH,ICT,Information Technology,ICT Services,Admin Equipment - Maintenance,29/01/2014,950.00,1271109,A034157,Idox Software Ltd
North West Leicestershire District Council,31UH,ICT,Information Technology,ICT Services,Admin Equipment - Maintenance,29/01/2014,950.00,1271110,A034157,Idox Software Ltd
North West Leicestershire District Council,31UH,PROPFM,Property Services,Property Facilities Management,Purchases,29/01/2014,"1,200.00",1274174,A030887,T Denman & Sons (Melton Mowbray) Ltd
North West Leicestershire District Council,31UH,ESS,Street Management,Environment - Street Scene,Operational Equipment,29/01/2014,"1,185.94",1275756,A028996,Metric Group Ltd (Sales)
North West Leicestershire District Council,31UH,ENOT,Street Management,Environment Transport,Transport Costs - Tyres,29/01/2014,539.90,1276312,A035175,Malvern Tyres
North West Leicestershire District Council,31UH,HLC,Leisure Centres,Hermitage Leisure Centre,Service Contracts,29/01/2014,"1,117.71",1276316,A035910,Chubb Electronic Security Ltd
North West Leicestershire District Council,31UH,HRAPBS,Housing,HRA Performance & Business Support,Interim Support,29/01/2014,"3,300.00",1276282,A040578,Matthew Barney
North West Leicestershire District Council,31UH,PROPCL,Property Services,Property Commercial Lettings,General Repairs,29/01/2014,"1,593.00",1276357,A033342,J Tomlinson Ltd
North West Leicestershire District Council,31UH,PROPFM,Property Services,Property Facilities Management,Purchases,29/01/2014,500.00,1276359,A033342,J Tomlinson Ltd
North West Leicestershire District Council,31UH,ENOGT,Street Management,Environment General Technician,Operational Equipment,29/01/2014,"3,000.00",1276176,A000950,Leicestershire County Council
North West Leicestershire District Council,31UH,EBC,Planning & Development,Building Control,Fees - L.C.C.,29/01/2014,"2,555.00",1275864,A028430,Leicestershire County Council
North West Leicestershire District Council,31UH,PROPFM,Property Services,Property Facilities Management,Purchases,29/01/2014,"6,402.03",1276390,A033342,J Tomlinson Ltd
North West Leicestershire District Council,31UH,CULTEV,Leisure & Culture,Cultural Services Arts & Events,Coalville Christmas Decorations,29/01/2014,"5,504.32",1276331,A023267,Turnock Ltd
North West Leicestershire District Council,31UH,PROPCL,Property Services,Property Commercial Lettings,Contract Cleaning,29/01/2014,506.18,1276383,A003037,Coalville Cleaning Services
North West Leicestershire District Council,31UH,PROPFM,Property Services,Property Facilities Management,General Repairs,29/01/2014,"2,450.00",1274922,A028261,TECSERV UK LIMITED
North West Leicestershire District Council,31UH,EBC,Planning & Development,Building Control,Fees - L.C.C.,29/01/2014,"1,400.00",1276188,A028430,Leicestershire County Council
North West Leicestershire District Council,31UH,ENOP,Street Management,Environment Parks,Land & Open Space,29/01/2014,"1,470.60",1276363,A034582,Barcham Tree PLC
North West Leicestershire District Council,31UH,HRAOPS,Housing,HRA Older Persons Service,Alarm System Telephones,29/01/2014,"1,158.00",1276368,A001701,Tunstall Healthcare (UK) Limited
North West Leicestershire District Council,31UH,HRAPBS,Housing,HRA Performance & Business Support,Machinery & Equipment,05/02/2014,"24,013.00",1276658,A032826,Freedom Communications (UK) Ltd
North West Leicestershire District Council,31UH,ESS,Street Management,Environment - Street Scene,Agency Staff,05/02/2014,810.00,1276661,A031571,HBHC Synergy Ltd
North West Leicestershire District Council,31UH,ENOT,Street Management,Environment Transport,Repairs - Parts,05/02/2014,"1,788.90",1276670,A032114,Watling JCB Ltd
North West Leicestershire District Council,31UH,ENOT,Street Management,Environment Transport,Gas,05/02/2014,949.73,1276671,A032686,Calor Gas Limited
North West Leicestershire District Council,31UH,ENOT,Street Management,Environment Transport,Repairs - Parts,05/02/2014,678.85,1276674,A001131,Mobile Hydraulics Ltd
North West Leicestershire District Council,31UH,ENOGT,Street Management,Environment General Technician,Land Drainage,05/02/2014,"1,625.00",1276713,A039847,SG Baker Ltd
North West Leicestershire District Council,31UH,ESS,Street Management,Environment - Street Scene,Operational Equipment,05/02/2014,550.00,1276630,A028996,Metric Group Ltd (Sales)
North West Leicestershire District Council,31UH,FINPLA,Finance,Financial Planning,Audit Commision Fees,05/02/2014,"20,140.50",1276655,A035156,KPMG LLP
North West Leicestershire District Council,31UH,HOFI,Finance,Head of Finance,Shared Revs & Bens Partnership costs,05/02/2014,"17,197.00",1276656,A000770,Hinckley & Bosworth Borough Council
North West Leicestershire District Council,31UH,ENOT,Street Management,Environment Transport,Repairs - Parts,05/02/2014,681.20,1270241,A039355,Johnston Sweepers Ltd
North West Leicestershire District Council,31UH,EPP,Planning & Development,Environment Planning Policy,Training Expenses,05/02/2014,780.00,1276675,A028371,Haymarket Business Publications Ltd
North West Leicestershire District Council,31UH,HLBC,Leisure Centres,Hermitage Bar & Catering,Bar Provisions,05/02/2014,564.18,1276722,A039915,LWC - Birmingham
North West Leicestershire District Council,31UH,ENOT,Street Management,Environment Transport,Repairs - Parts,05/02/2014,571.89,1276659,A000625,Ford & Slater Group Ltd
North West Leicestershire District Council,31UH,ICT,Information Technology,ICT Services,Website Maintenance,05/02/2014,"3,200.00",1276750,A000323,Charnwood Borough Council
North West Leicestershire District Council,31UH,HLC,Leisure Centres,Hermitage Leisure Centre,Maintenance/Office Expenditure,05/02/2014,"1,474.07",1276736,A027779,Horton Automatics Limited
North West Leicestershire District Council,31UH,HLC,Leisure Centres,Hermitage Leisure Centre,Swimming Badges,05/02/2014,845.20,1276745,A001616,Swimming Teachers Association Ltd
North West Leicestershire District Council,31UH,HR,Corporate Director,Human Resources,Purchases,05/02/2014,"3,402.00",1276784,A038606,Premier Employer Solutions Limited
North West Leicestershire District Council,31UH,HRAHRM,Housing Repairs,HRA Housing Repairs & Maintenance,Consultants Fees,05/02/2014,"266,704.00",1276800,A032547,Savills Commercial Limited
North West Leicestershire District Council,31UH,HLC,Leisure Centres,Hermitage Leisure Centre,Service Contracts,05/02/2014,780.00,1276739,A022180,Complete Cooling Services Ltd
North West Leicestershire District Council,31UH,EDC,Planning & Development,Environment - Development Control,Consultants Fees,05/02/2014,"1,500.00",1276806,A035501,WSP Development & Transport
North West Leicestershire District Council,31UH,ENOP,Street Management,Environment Parks,General Materials,05/02/2014,665.12,1276809,A030744,Groundsman Tools & Supplies
North West Leicestershire District Council,31UH,HRAHRM,Housing Repairs,HRA Housing Repairs & Maintenance,Protective Clothing,05/02/2014,"1,387.29",1276832,A009933,Westbury Industrial Supplies Limited
North West Leicestershire District Council,31UH,PROPFM,Property Services,Property Facilities Management,Purchases,05/02/2014,"22,301.47",1276833,A035689,Mansell Construction Services Limited
North West Leicestershire District Council,31UH,PROPFM,Property Services,Property Facilities Management,General Repairs,05/02/2014,553.00,1276842,A028261,TECSERV UK LIMITED
North West Leicestershire District Council,31UH,PROPFM,Property Services,Property Facilities Management,General Repairs,05/02/2014,877.00,1276843,A028261,TECSERV UK LIMITED
North West Leicestershire District Council,31UH,EBC,Planning & Development,Building Control,Expenditure against earmarked reserve,12/02/2014,"2,260.04",1276664,A002189,Local Government Association
North West Leicestershire District Council,31UH,PROPCL,Property Services,Property Commercial Lettings,General Repairs,12/02/2014,633.00,1276772,A036300,Hytrac Lifts Limited
North West Leicestershire District Council,31UH,CHEX,Chief Exec,Chief Executive,External Legal Fees & Advice,12/02/2014,500.00,1277125,A039356,Broadsted Associates Ltd
North West Leicestershire District Council,31UH,PROPFM,Property Services,Property Facilities Management,Purchases,12/02/2014,"7,330.00",1277135,A033342,J Tomlinson Ltd
North West Leicestershire District Council,31UH,PROPFM,Property Services,Property Facilities Management,Purchases,12/02/2014,"3,958.50",1277136,A033342,J Tomlinson Ltd
North West Leicestershire District Council,31UH,ENOT,Street Management,Environment Transport,Non Insurance Damage,12/02/2014,781.28,1277143,A000063,Tennant UK Cleaning Solutions Limited
North West Leicestershire District Council,31UH,ESS,Street Management,Environment - Street Scene,Agency Staff,05/02/2014,990.45,1276749,A031571,HBHC Synergy Ltd
North West Leicestershire District Council,31UH,HRAPBS,Housing,HRA Performance & Business Support,Other Printing,05/02/2014,532.73,1276773,A025384,Wilpbond Limited t/a Prontaprint
North West Leicestershire District Council,31UH,ENOT,Street Management,Environment Transport,Operational Equipment,05/02/2014,"1,730.00",1276778,A032890,DR Baling Wire Manufacturers Ltd
North West Leicestershire District Council,31UH,PROPCL,Property Services,Property Commercial Lettings,Postages,05/02/2014,"2,020.00",1276783,A008204,Purchase Power
North West Leicestershire District Council,31UH,ICT,Information Technology,ICT Services,Admin Equipment - Purchased & Recharged,05/02/2014,"3,270.00",1276786,A039732,Kingsfield Computer Products Ltd
North West Leicestershire District Council,31UH,FINPLA,Finance,Financial Planning,Legal & Professional Services,05/02/2014,775.00,1276801,A000950,Leicestershire County Council
North West Leicestershire District Council,31UH,HLC,Leisure Centres,Hermitage Leisure Centre,Water Treatment,05/02/2014,508.90,1276774,A037999,Gaffey Technical Services Limited
North West Leicestershire District Council,31UH,HRAPBS,Housing,HRA Performance & Business Support,Consultation,05/02/2014,"4,500.00",1276805,A039059,Delib
North West Leicestershire District Council,31UH,NACCS,Neighbourhoods & Communities,N & C Community Safety,Community Safety,05/02/2014,600.00,1276836,A040709,Warning Zone Ltd
North West Leicestershire District Council,31UH,HLC,Leisure Centres,Hermitage Leisure Centre,Measham LC Lifestyle DD,05/02/2014,"1,541.67",1276734,A027454,Measham Leisure Centre
North West Leicestershire District Council,31UH,LDCE,Legal & Democratic,Civic Expenses,Training Expenses,12/02/2014,611.67,1277221,A033402,The Association of Electoral Administrators Ltd
North West Leicestershire District Council,31UH,ENOT,Street Management,Environment Transport,Purchases,12/02/2014,"17,890.80",1277171,A040946,Hall Fuels (Division of Watson Petroleum)
North West Leicestershire District Council,31UH,ENOT,Street Management,Environment Transport,Repairs - Parts,12/02/2014,"1,154.20",1277194,A001647,Terberg Matec UK Limited
North West Leicestershire District Council,31UH,HLC,Leisure Centres,Hermitage Leisure Centre,Service Contracts,12/02/2014,510.00,1277167,A028325,Quality Water Company
North West Leicestershire District Council,31UH,ENOT,Street Management,Environment Transport,Repairs - Parts,12/02/2014,621.33,1277196,A000906,Kovacs Limited
North West Leicestershire District Council,31UH,ENOT,Street Management,Environment Transport,General Repairs,12/02/2014,"1,084.00",1277197,A000548,Electract Limited
North West Leicestershire District Council,31UH,CULTEV,Leisure & Culture,Cultural Services Arts & Events,Special Events,12/02/2014,609.00,1277202,A000374,Coalville Times Ltd
North West Leicestershire District Council,31UH,ENOP,Street Management,Environment Parks,Operational Equipment - Purchases,12/02/2014,577.50,1277211,A001648,Terratruck Distribution Services Ltd
North West Leicestershire District Council,31UH,NACCS,Neighbourhoods & Communities,N & C Community Safety,BSC PROJECT AREA - VIOLENCE,12/02/2014,"1,855.80",1277213,A039843,Women's Aid Leicestershire Ltd
North West Leicestershire District Council,31UH,ICT,Information Technology,ICT Services,Admin Equipment - Maintenance,12/02/2014,"2,165.46",1275056,A031430,ComputerLand UK Plc
North West Leicestershire District Council,31UH,ENOT,Street Management,Environment Transport,Training Expenses,12/02/2014,646.80,1276851,A027792,Keith Cook Training Services
North West Leicestershire District Council,31UH,ENOT,Street Management,Environment Transport,Training Expenses,12/02/2014,589.00,1276852,A027792,Keith Cook Training Services
North West Leicestershire District Council,31UH,ENOT,Street Management,Environment Transport,Training Expenses,12/02/2014,646.80,1276853,A027792,Keith Cook Training Services
North West Leicestershire District Council,31UH,PROPFM,Property Services,Property Facilities Management,General Repairs,12/02/2014,"1,509.35",1277165,A006288,Protec Fire Detection Plc
North West Leicestershire District Council,31UH,HRAHRM,Housing Repairs,HRA Housing Repairs & Maintenance,Derv,12/02/2014,"14,440.71",1277259,A000951,Leicestershire County Council
North West Leicestershire District Council,31UH,EEHL,Environmental Health,Environmental Health & Licensing,Baits & Poisons,12/02/2014,669.94,1277269,A000890,Killgerm Chemicals Ltd
North West Leicestershire District Council,31UH,ICT,Information Technology,ICT Services,Administrative Equipment,19/02/2014,"1,565.00",1277203,A025151,Probrand Limited
North West Leicestershire District Council,31UH,HLBC,Leisure Centres,Hermitage Bar & Catering,Catering Provisions,19/02/2014,552.24,1277897,A000218,Briers Butchers Limited
North West Leicestershire District Council,31UH,CDCC,Leisure Centres,Castle Donington Community College,Alternative Fitness Suite,19/02/2014,522.58,1277905,A005413,Elliott Group Limited
North West Leicestershire District Council,31UH,HLBC,Leisure Centres,Hermitage Bar & Catering,Bar Provisions,19/02/2014,621.47,1277911,A039915,LWC - Birmingham
North West Leicestershire District Council,31UH,ENOP,Street Management,Environment Parks,Recreational Equipment,19/02/2014,"2,575.68",1277926,A000671,Glasdon UK Ltd
North West Leicestershire District Council,31UH,ENOT,Street Management,Environment Transport,Transport Costs - Tyres,12/02/2014,"1,120.00",1277272,A033268,Bandvulc Tyres Ltd
North West Leicestershire District Council,31UH,ICT,Information Technology,ICT Services,Admin Equipment - Maintenance,12/02/2014,"1,839.58",1277310,A032826,Freedom Communications (UK) Ltd
North West Leicestershire District Council,31UH,BENS,Finance,Housing Benefits,Revs & Bens expenditure funded by grants,12/02/2014,"3,748.00",1277311,A002968,Capita Business Services Ltd
North West Leicestershire District Council,31UH,HLBC,Leisure Centres,Hermitage Bar & Catering,Catering Provisions,19/02/2014,573.97,1277979,A000783,Hopwells Frozen Foods Limited
North West Leicestershire District Council,31UH,HLBC,Leisure Centres,Hermitage Bar & Catering,Catering Provisions,19/02/2014,539.85,1277980,A001264,Palmer Harvey Mclane Ltd
North West Leicestershire District Council,31UH,HPLC,Leisure Centres,Hood Park Leisure Centre,General Repairs,19/02/2014,"1,500.00",1277256,A001069,Mclean Decorators Ltd
North West Leicestershire District Council,31UH,HLC,Leisure Centres,Hermitage Leisure Centre,Measham LC Lifestyle DD,19/02/2014,"2,041.67",1277908,A027454,Measham Leisure Centre
North West Leicestershire District Council,31UH,ECCTV,Planning & Development,Environment - Town Centre/CCTV,Agency Staff,19/02/2014,"3,923.00",1277987,A038132,Premier Security Services (Midlands) Limited
North West Leicestershire District Council,31UH,EPP,Planning & Development,Environment Planning Policy,Town Centre & Area Regeneration - Initia,19/02/2014,"21,000.00",1277878,A001092,John Merison BMC Ltd
North West Leicestershire District Council,31UH,ENOT,Street Management,Environment Transport,Non Insurance Damage,19/02/2014,633.75,1278006,A031849,Lee Wells Autobodies Ltd
North West Leicestershire District Council,31UH,HLC,Leisure Centres,Hermitage Leisure Centre,Water Treatment,19/02/2014,901.15,1278059,A001591,Stowlin Ltd
North West Leicestershire District Council,31UH,EDC,Planning & Development,Environment - Development Control,Advertising,19/02/2014,500.96,1278083,A001395,Euro RSCG People T/A Havas People Ltd
North West Leicestershire District Council,31UH,EDC,Planning & Development,Environment - Development Control,Advertising,19/02/2014,608.66,1278084,A001395,Euro RSCG People T/A Havas People Ltd
North West Leicestershire District Council,31UH,EDC,Planning & Development,Environment - Development Control,Consultants Fees,19/02/2014,960.70,1278106,A028258,Peter Brett Associates T/a Roger Tym & Partners
North West Leicestershire District Council,31UH,ENOP,Street Management,Environment Parks,Herbicides,19/02/2014,"1,344.00",1278114,A001392,Rigby Taylor Limited
North West Leicestershire District Council,31UH,ENOP,Street Management,Environment Parks,Recreational Equipment,19/02/2014,982.75,1278116,A001392,Rigby Taylor Limited
North West Leicestershire District Council,31UH,HPLC,Leisure Centres,Hood Park Leisure Centre,Water Treatment,19/02/2014,608.40,1278046,A001591,Stowlin Ltd
North West Leicestershire District Council,31UH,HPLC,Leisure Centres,Hood Park Leisure Centre,Service Contracts,19/02/2014,500.33,1278047,A024546,Siemens Energy Services Ltd
North West Leicestershire District Council,31UH,HLC,Leisure Centres,Hermitage Leisure Centre,General Repairs,19/02/2014,778.00,1278055,A022996,Bouncy Castle Repairs
North West Leicestershire District Council,31UH,HLBC,Leisure Centres,Hermitage Bar & Catering,Hospitality,19/02/2014,550.20,1278056,A036676,Shires Event Hire
North West Leicestershire District Council,31UH,CDCC,Leisure Centres,Castle Donington Community College,Agency Staff,19/02/2014,"9,341.60",1278060,A000302,Castle Donington College
North West Leicestershire District Council,31UH,CDCC,Leisure Centres,Castle Donington Community College,Agency Staff,19/02/2014,"7,006.20",1278061,A000302,Castle Donington College
North West Leicestershire District Council,31UH,HPBC,Leisure Centres,Hood Park Bar and Catering,Catering Provisions,19/02/2014,547.96,1278071,A001264,Palmer Harvey Mclane Ltd
North West Leicestershire District Council,31UH,ENOWM,Street Management,Environment Waste Management,General Materials,19/02/2014,"17,728.20",1277981,A024906,Straight Plc
North West Leicestershire District Council,31UH,ENOT,Street Management,Environment Transport,Repairs - Parts,19/02/2014,620.29,1277996,A000625,Ford & Slater Group Ltd
North West Leicestershire District Council,31UH,PROPCL,Property Services,Property Commercial Lettings,Alt & Mtce-Fixed Plant,19/02/2014,879.00,1278096,A038958,NPS Barnsley Ltd
North West Leicestershire District Council,31UH,EEHL,Environmental Health,Environmental Health & Licensing,Vet Inspection,19/02/2014,629.65,1278107,A033670,Eville And Jones Limited
North West Leicestershire District Council,31UH,ECP,Planning & Development,Environment Community Planning,Sustainability,19/02/2014,"2,625.05",1278118,A029800,R & N Plant Specialists
North West Leicestershire District Council,31UH,ECCTV,Planning & Development,Environment - Town Centre/CCTV,Town Centre Regeneration,19/02/2014,"1,886.00",1278129,A040964,Emmerson Doors Ltd
North West Leicestershire District Council,31UH,ENOP,Street Management,Environment Parks,External Materials,19/02/2014,750.00,1278136,A039324,Four Counties Tree Specialists Ltd
North West Leicestershire District Council,31UH,ENOT,Street Management,Environment Transport,Good Vehicle Plating,19/02/2014,555.00,1278141,A033469,Anderson Commercials Limited
North West Leicestershire District Council,31UH,EEHL,Environmental Health,Environmental Health & Licensing,Expenditure against earmarked reserve,19/02/2014,"3,250.00",1278276,A007096,The Office of the Police and Crime Commissioner for Leicestershire
North West Leicestershire District Council,31UH,ENOT,Street Management,Environment Transport,Purchases,19/02/2014,945.45,1278427,A037391,Emo Oil Limited
North West Leicestershire District Council,31UH,EBC,Planning & Development,Building Control,Fees - L.C.C.,26/02/2014,"1,883.00",1278604,A027423,Leicestershire County Council
North West Leicestershire District Council,31UH,HRAPBS,Housing,HRA Performance & Business Support,Interim Support,26/02/2014,"4,650.00",1278623,A040578,Matthew Barney
North West Leicestershire District Council,31UH,ENOT,Street Management,Environment Transport,Repairs - Parts,26/02/2014,514.66,1278429,A000522,Dennis Eagle Limited
North West Leicestershire District Council,31UH,FINPLA,Finance,Financial Planning,Books & Publications,26/02/2014,"1,988.75",1278478,A036780,CIPFA Business Limited
North West Leicestershire District Council,31UH,HLC,Leisure Centres,Hermitage Leisure Centre,Hospitality,26/02/2014,675.00,1278509,A027592,Chameleon Pro Audio T/A Lux Technical Ltd
North West Leicestershire District Council,31UH,HPLC,Leisure Centres,Hood Park Leisure Centre,Service Contracts,26/02/2014,729.97,1278520,A000021,ADT Fire And Security
North West Leicestershire District Council,31UH,PROPCL,Property Services,Property Commercial Lettings,General Repairs,26/02/2014,750.54,1278527,A033342,J Tomlinson Ltd
North West Leicestershire District Council,31UH,ENOT,Street Management,Environment Transport,Purchases,26/02/2014,"19,526.40",1278533,A040946,Hall Fuels (Division of Watson Petroleum)
North West Leicestershire District Council,31UH,ENOP,Street Management,Environment Parks,General Repairs,26/02/2014,705.12,1278534,A038742,Secure-a-field
North West Leicestershire District Council,31UH,NACCS,Neighbourhoods & Communities,N & C Community Safety,Anti Social Behaviour,26/02/2014,500.00,1278483,A010659,Charnwood Borough Council
North West Leicestershire District Council,31UH,ENOT,Street Management,Environment Transport,Transport Costs - Tyres,26/02/2014,"1,122.00",1278574,A034071,S & B Tyres Limited
North West Leicestershire District Council,31UH,PROPCL,Property Services,Property Commercial Lettings,Contract Cleaning,26/02/2014,506.18,1278589,A003037,Coalville Cleaning Services
,,,,,,,"3,276,462.12",,,
